[Event "Early-Titled-Tuesday-Blitz-January-23-2024"]
[Site "Chess.com"]
[Date "2024.01.23"]
[Round "5"]
[White "vova-79"]
[Black "ReinisUz"]
[Result "1/2-1/2"]
[WhiteElo "2561"]
[BlackElo "2445"]
[TimeControl "180+1"]
[EndTime "8:54:30 PST"]
[Termination "Game drawn by repetition"]

1. d4 {[%clk 0:03:00.9]} 1... d5 {[%clk 0:02:57.3]} 2. c4 {[%clk 0:03:00.2]}
2... c6 {[%clk 0:02:57.5]} 3. Nc3 {[%clk 0:02:59.7]} 3... Nf6 {[%clk 0:02:56.9]}
4. e3 {[%clk 0:02:59.2]} 4... e6 {[%clk 0:02:56.7]} 5. Nf3 {[%clk 0:02:57.7]}
5... Be7 {[%clk 0:02:56.8]} 6. Qc2 {[%clk 0:02:56.9]} 6... Nbd7 {[%clk
0:02:56.6]} 7. b3 {[%clk 0:02:51.2]} 7... O-O {[%clk 0:02:55.4]} 8. Bb2 {[%clk
0:02:51.8]} 8... Re8 {[%clk 0:02:55]} 9. Be2 {[%clk 0:02:51]} 9... Nf8 {[%clk
0:02:55.2]} 10. O-O {[%clk 0:02:50.6]} 10... N6d7 {[%clk 0:02:54.9]} 11. e4
{[%clk 0:02:48.3]} 11... dxe4 {[%clk 0:02:48.3]} 12. Nxe4 {[%clk 0:02:49.2]}
12... f5 {[%clk 0:02:41.5]} 13. Ng3 {[%clk 0:02:40.9]} 13... Bf6 {[%clk
0:02:40.7]} 14. Nh5 {[%clk 0:02:28.9]} 14... g6 {[%clk 0:02:33.2]} 15. Nxf6+
{[%clk 0:02:27.8]} 15... Qxf6 {[%clk 0:02:29.9]} 16. Rfe1 {[%clk 0:01:41.6]}
16... g5 {[%clk 0:02:26.1]} 17. Rad1 {[%clk 0:01:34.5]} 17... g4 {[%clk
0:02:24.6]} 18. Ne5 {[%clk 0:01:34.4]} 18... Nxe5 {[%clk 0:02:20.6]} 19. dxe5
{[%clk 0:01:35.3]} 19... Qe7 {[%clk 0:02:20]} 20. Rd6 {[%clk 0:01:29.3]} 20...
Ng6 {[%clk 0:02:17.8]} 21. Red1 {[%clk 0:01:27.4]} 21... c5 {[%clk 0:02:05.6]}
22. Qd2 {[%clk 0:01:20.1]} 22... b6 {[%clk 0:02:04.9]} 23. Qh6 {[%clk
0:01:17.7]} 23... Qg7 {[%clk 0:01:45.8]} 24. Qxg7+ {[%clk 0:01:14.1]} 24... Kxg7
{[%clk 0:01:46.7]} 25. Rd8 {[%clk 0:01:13.4]} 25... Kf7 {[%clk 0:01:12.3]} 26.
f3 {[%clk 0:01:06.9]} 26... h5 {[%clk 0:01:10.7]} 27. fxg4 {[%clk 0:01:01.6]}
27... hxg4 {[%clk 0:01:11.6]} 28. h3 {[%clk 0:01:01.8]} 28... Rxd8 {[%clk
0:00:48.3]} 29. Rxd8 {[%clk 0:00:57.7]} 29... Nf4 {[%clk 0:00:48.2]} 30. Bf1
{[%clk 0:00:52.8]} 30... gxh3 {[%clk 0:00:43.7]} 31. g3 {[%clk 0:00:46.2]} 31...
Ng6 {[%clk 0:00:36.4]} 32. Bxh3 {[%clk 0:00:32.7]} 32... Ke7 {[%clk 0:00:34.8]}
33. Rg8 {[%clk 0:00:30.5]} 33... Kf7 {[%clk 0:00:35]} 34. Rd8 {[%clk 0:00:26.6]}
34... Ke7 {[%clk 0:00:35.3]} 35. Rg8 {[%clk 0:00:19.7]} 35... Kf7 {[%clk
0:00:35.2]} 36. Rd8 {[%clk 0:00:19.7]} 1/2-1/2

[Event "Early-Titled-Tuesday-Blitz-January-23-2024"]
[Site "Chess.com"]
[Date "2024.01.23"]
[Round "5"]
[White "Martial2008"]
[Black "stasOR4ik"]
[Result "1-0"]
[WhiteElo "2664"]
[BlackElo "2417"]
[TimeControl "180+1"]
[EndTime "8:54:32 PST"]
[Termination "Martial2008 won on time"]

1. d4 {[%clk 0:03:00.9]} 1... d5 {[%clk 0:02:58.1]} 2. Nf3 {[%clk 0:03:01.8]}
2... Nf6 {[%clk 0:02:58.4]} 3. Bf4 {[%clk 0:03:01.3]} 3... e6 {[%clk 0:02:55.6]}
4. Nbd2 {[%clk 0:02:58.3]} 4... Nbd7 {[%clk 0:02:55.3]} 5. e3 {[%clk 0:02:56.6]}
5... Ne4 {[%clk 0:02:55.3]} 6. Nxe4 {[%clk 0:02:48.3]} 6... dxe4 {[%clk
0:02:56.2]} 7. Nd2 {[%clk 0:02:45.1]} 7... f5 {[%clk 0:02:52.3]} 8. c3 {[%clk
0:02:42.1]} 8... Bd6 {[%clk 0:02:43]} 9. Qb3 {[%clk 0:02:36.5]} 9... Nf6 {[%clk
0:02:36.6]} 10. Bb5+ {[%clk 0:02:35.2]} 10... c6 {[%clk 0:02:35.6]} 11. Bxd6
{[%clk 0:02:30.1]} 11... Qxd6 {[%clk 0:02:30.3]} 12. Be2 {[%clk 0:02:31]} 12...
O-O {[%clk 0:02:28.1]} 13. Nc4 {[%clk 0:02:30.1]} 13... Qc7 {[%clk 0:02:26.9]}
14. Ne5 {[%clk 0:02:29.3]} 14... Qd6 {[%clk 0:01:58.2]} 15. O-O {[%clk
0:02:25.3]} 15... Nd7 {[%clk 0:01:57.6]} 16. f4 {[%clk 0:02:24.8]} 16... Nxe5
{[%clk 0:01:51.6]} 17. dxe5 {[%clk 0:02:24.9]} 17... Qc5 {[%clk 0:01:51.6]} 18.
Kf2 {[%clk 0:02:25.5]} 18... g5 {[%clk 0:01:37.5]} 19. g3 {[%clk 0:02:24.4]}
19... a5 {[%clk 0:01:22.2]} 20. Rad1 {[%clk 0:02:11.1]} 20... a4 {[%clk
0:01:20.2]} 21. Qb4 {[%clk 0:02:02.4]} 21... Qxb4 {[%clk 0:01:19.9]} 22. cxb4
{[%clk 0:02:03.3]} 22... a3 {[%clk 0:01:11.7]} 23. b3 {[%clk 0:02:02.3]} 23...
h6 {[%clk 0:00:55.7]} 24. Rd6 {[%clk 0:02:01.2]} 24... Kf7 {[%clk 0:00:52.9]}
25. Rfd1 {[%clk 0:01:57.4]} 25... Ke7 {[%clk 0:00:53]} 26. h4 {[%clk 0:01:55.9]}
26... g4 {[%clk 0:00:52.7]} 27. Bc4 {[%clk 0:01:52.6]} 27... Ra7 {[%clk
0:00:36.2]} 28. Ke2 {[%clk 0:01:51.1]} 28... b5 {[%clk 0:00:31.3]} 29. Rxc6
{[%clk 0:01:47]} 29... bxc4 {[%clk 0:00:28.8]} 30. bxc4 {[%clk 0:01:47.9]} 30...
Bd7 {[%clk 0:00:22.6]} 31. Rcd6 {[%clk 0:01:47]} 31... Ba4 {[%clk 0:00:22]} 32.
Rc1 {[%clk 0:01:40.1]} 32... Rd8 {[%clk 0:00:18.5]} 33. c5 {[%clk 0:01:39.4]}
33... Rxd6 {[%clk 0:00:17.4]} 34. exd6+ {[%clk 0:01:39.8]} 34... Kd7 {[%clk
0:00:17.7]} 35. Kd2 {[%clk 0:01:39.1]} 35... Kc6 {[%clk 0:00:17.6]} 36. Kc3
{[%clk 0:01:36.4]} 36... Bb5 {[%clk 0:00:17.3]} 37. Kd4 {[%clk 0:01:26.4]} 37...
Ra4 {[%clk 0:00:13.2]} 38. Kc3 {[%clk 0:01:23.2]} 38... Bd3 {[%clk 0:00:12.7]}
39. Kb3 {[%clk 0:01:21.6]} 39... Ra8 {[%clk 0:00:09.8]} 40. Kc3 {[%clk
0:01:19.2]} 40... Kb5 {[%clk 0:00:09.5]} 41. Kd4 {[%clk 0:01:15.8]} 41... Kc6
{[%clk 0:00:07.5]} 42. Ke5 {[%clk 0:01:11.2]} 42... Rb8 {[%clk 0:00:06.3]} 43.
Kxe6 {[%clk 0:01:11]} 43... Bb1 {[%clk 0:00:01.4]} 44. Rxb1 {[%clk 0:01:08.7]}
1-0

[Event "Early-Titled-Tuesday-Blitz-January-23-2024"]
[Site "Chess.com"]
[Date "2024.01.23"]
[Round "5"]
[White "vladislavkovalev"]
[Black "GroovyKettle"]
[Result "1/2-1/2"]
[WhiteElo "2854"]
[BlackElo "2973"]
[TimeControl "180+1"]
[EndTime "8:54:33 PST"]
[Termination "Game drawn by repetition"]

1. e4 {[%clk 0:03:00.9]} 1... c5 {[%clk 0:02:58.1]} 2. Nf3 {[%clk 0:03:01.3]}
2... d6 {[%clk 0:02:58.2]} 3. Bb5+ {[%clk 0:03:01.7]} 3... Bd7 {[%clk
0:02:57.8]} 4. Bxd7+ {[%clk 0:03:02]} 4... Qxd7 {[%clk 0:02:58.7]} 5. c4 {[%clk
0:03:02.5]} 5... Nf6 {[%clk 0:02:58.4]} 6. Nc3 {[%clk 0:03:03]} 6... Nc6 {[%clk
0:02:58.1]} 7. d4 {[%clk 0:03:03.7]} 7... cxd4 {[%clk 0:02:58.3]} 8. Nxd4 {[%clk
0:03:04.6]} 8... g6 {[%clk 0:02:58.4]} 9. f3 {[%clk 0:03:05.2]} 9... Bg7 {[%clk
0:02:58.7]} 10. Be3 {[%clk 0:03:06]} 10... O-O {[%clk 0:02:59.2]} 11. Rc1 {[%clk
0:03:06.6]} 11... Rfc8 {[%clk 0:02:59.5]} 12. b3 {[%clk 0:03:06.7]} 12... Qd8
{[%clk 0:02:58.8]} 13. O-O {[%clk 0:02:49.6]} 13... a6 {[%clk 0:02:59.2]} 14.
Qd2 {[%clk 0:02:40.6]} 14... Qa5 {[%clk 0:02:50.6]} 15. Qf2 {[%clk 0:01:32.1]}
15... Nd7 {[%clk 0:02:34.7]} 16. Nd5 {[%clk 0:01:26.8]} 16... Qd8 {[%clk
0:02:23.8]} 17. Rfd1 {[%clk 0:01:22]} 17... Rab8 {[%clk 0:02:11]} 18. Qh4 {[%clk
0:01:09.7]} 18... Nf6 {[%clk 0:01:57.6]} 19. Ne2 {[%clk 0:00:32.4]} 19... b5
{[%clk 0:01:50.2]} 20. cxb5 {[%clk 0:00:31.9]} 20... axb5 {[%clk 0:01:49.8]} 21.
Bg5 {[%clk 0:00:17.2]} 21... Nxd5 {[%clk 0:01:40.8]} 22. exd5 {[%clk 0:00:16.7]}
22... Qb6+ {[%clk 0:01:36.4]} 23. Qf2 {[%clk 0:00:12.6]} 23... Qxf2+ {[%clk
0:01:35]} 24. Kxf2 {[%clk 0:00:13.5]} 24... Nb4 {[%clk 0:01:33.7]} 25. Rxc8+
{[%clk 0:00:07.8]} 25... Rxc8 {[%clk 0:01:34.6]} 26. Bxe7 {[%clk 0:00:08]} 26...
Bf8 {[%clk 0:01:14.9]} 27. Bxf8 {[%clk 0:00:06.2]} 27... Kxf8 {[%clk 0:01:15.8]}
28. a4 {[%clk 0:00:07]} 28... bxa4 {[%clk 0:01:13.5]} 29. bxa4 {[%clk
0:00:07.9]} 29... Rc2 {[%clk 0:01:13.5]} 30. Rd4 {[%clk 0:00:01.3]} 30... Na6
{[%clk 0:01:05.8]} 31. g4 {[%clk 0:00:02]} 31... Nc5 {[%clk 0:01:05.1]} 32. Ke3
{[%clk 0:00:02.8]} 32... Ra2 {[%clk 0:01:02.1]} 33. Nc3 {[%clk 0:00:02.9]} 33...
Ra3 {[%clk 0:01:02.5]} 34. Rc4 {[%clk 0:00:03.4]} 34... Nxa4 {[%clk 0:01:02.3]}
35. Rxa4 {[%clk 0:00:04.3]} 35... Rxc3+ {[%clk 0:01:02.6]} 36. Ke4 {[%clk
0:00:05.1]} 36... g5 {[%clk 0:00:57.4]} 37. Ra6 {[%clk 0:00:04.5]} 37... Ke7
{[%clk 0:00:57.6]} 38. Ra7+ {[%clk 0:00:05.1]} 38... Ke8 {[%clk 0:00:54.7]} 39.
Ra8+ {[%clk 0:00:05.5]} 39... Ke7 {[%clk 0:00:55]} 40. Ra7+ {[%clk 0:00:06.2]}
40... Ke8 {[%clk 0:00:55.4]} 41. Ra8+ {[%clk 0:00:06.6]} 41... Ke7 {[%clk
0:00:56]} 42. Ra7+ {[%clk 0:00:06.4]} 1/2-1/2

[Event "Early-Titled-Tuesday-Blitz-January-23-2024"]
[Site "Chess.com"]
[Date "2024.01.23"]
[Round "5"]
[White "toninhojit"]
[Black "nekotyanof"]
[Result "0-1"]
[WhiteElo "2444"]
[BlackElo "2651"]
[TimeControl "180+1"]
[EndTime "8:54:35 PST"]
[Termination "nekotyanof won by resignation"]

1. d4 {[%clk 0:03:00.9]} 1... Nf6 {[%clk 0:02:58.7]} 2. c4 {[%clk 0:03:01.1]}
2... e6 {[%clk 0:02:59]} 3. Nf3 {[%clk 0:03:01]} 3... d5 {[%clk 0:02:58.8]} 4.
Nc3 {[%clk 0:03:00.8]} 4... Be7 {[%clk 0:02:58.5]} 5. Bf4 {[%clk 0:02:57.3]}
5... O-O {[%clk 0:02:58.1]} 6. e3 {[%clk 0:02:57.9]} 6... c5 {[%clk 0:02:56.8]}
7. dxc5 {[%clk 0:02:56.3]} 7... Bxc5 {[%clk 0:02:57.7]} 8. a3 {[%clk 0:02:56]}
8... Nc6 {[%clk 0:02:58.3]} 9. b4 {[%clk 0:02:55.5]} 9... Nxb4 {[%clk
0:02:58.8]} 10. axb4 {[%clk 0:02:46.5]} 10... Bxb4 {[%clk 0:02:59.7]} 11. Qb3
{[%clk 0:02:46.7]} 11... a5 {[%clk 0:02:57.8]} 12. Be2 {[%clk 0:02:33.8]} 12...
Ne4 {[%clk 0:02:33.5]} 13. Rc1 {[%clk 0:02:30.4]} 13... dxc4 {[%clk 0:02:11.7]}
14. Qxc4 {[%clk 0:02:31.3]} 14... Nxc3 {[%clk 0:01:34.4]} 15. Rxc3 {[%clk
0:02:32.2]} 15... b5 {[%clk 0:01:33.3]} 16. Qb3 {[%clk 0:02:21.3]} 16... Bxc3+
{[%clk 0:01:30.4]} 17. Qxc3 {[%clk 0:02:22.2]} 17... b4 {[%clk 0:01:31.3]} 18.
Qb3 {[%clk 0:02:18]} 18... Ba6 {[%clk 0:01:24.1]} 19. Bxa6 {[%clk 0:02:13.4]}
19... Rxa6 {[%clk 0:01:25]} 20. O-O {[%clk 0:02:13.8]} 20... Qd5 {[%clk
0:01:24.2]} 21. Qa4 {[%clk 0:02:09.6]} 21... Rc8 {[%clk 0:01:17.7]} 22. Rd1
{[%clk 0:02:06.2]} 22... b3 {[%clk 0:01:17.7]} 23. Rb1 {[%clk 0:01:32]} 23...
Qd3 {[%clk 0:01:16.6]} 24. Qa1 {[%clk 0:01:25.2]} 24... Rac6 {[%clk 0:01:08.8]}
25. e4 {[%clk 0:01:09.7]} 25... Qxe4 {[%clk 0:00:49.6]} 26. Be3 {[%clk
0:01:10.1]} 26... Rc2 {[%clk 0:00:48.7]} 27. Qxa5 {[%clk 0:00:51.9]} 27... Ra2
{[%clk 0:00:32.6]} 28. Qe1 {[%clk 0:00:42.4]} 28... Qxb1 {[%clk 0:00:32]} 29.
Qxb1 {[%clk 0:00:41.4]} 29... b2 {[%clk 0:00:32.6]} 30. g3 {[%clk 0:00:12.5]}
30... Ra1 {[%clk 0:00:32.4]} 31. Nd2 {[%clk 0:00:11.3]} 31... Rxb1+ {[%clk
0:00:31.1]} 32. Nxb1 {[%clk 0:00:12.2]} 32... Rc1+ {[%clk 0:00:31.5]} 0-1

[Event "Early-Titled-Tuesday-Blitz-January-23-2024"]
[Site "Chess.com"]
[Date "2024.01.23"]
[Round "5"]
[White "alekroth65"]
[Black "FMCarmona"]
[Result "1-0"]
[WhiteElo "2340"]
[BlackElo "2144"]
[TimeControl "180+1"]
[EndTime "8:54:36 PST"]
[Termination "alekroth65 won by resignation"]

1. d4 {[%clk 0:03:00.9]} 1... d5 {[%clk 0:02:56]} 2. c4 {[%clk 0:03:00.5]} 2...
e6 {[%clk 0:02:56.5]} 3. Nf3 {[%clk 0:03:00.4]} 3... Nf6 {[%clk 0:02:57]} 4. Bg5
{[%clk 0:03:00]} 4... Be7 {[%clk 0:02:53.3]} 5. e3 {[%clk 0:02:59.8]} 5... O-O
{[%clk 0:02:48.2]} 6. Nc3 {[%clk 0:02:58.3]} 6... c6 {[%clk 0:02:42.8]} 7. Qc2
{[%clk 0:02:55.2]} 7... h6 {[%clk 0:02:38.4]} 8. Bxf6 {[%clk 0:02:54.8]} 8...
Bxf6 {[%clk 0:02:38]} 9. h4 {[%clk 0:02:55.7]} 9... Nd7 {[%clk 0:02:26.4]} 10.
g4 {[%clk 0:02:54.8]} 10... g6 {[%clk 0:02:13.5]} 11. g5 {[%clk 0:02:52.2]}
11... hxg5 {[%clk 0:02:09.1]} 12. hxg5 {[%clk 0:02:51.6]} 12... Bg7 {[%clk
0:02:09.3]} 13. O-O-O {[%clk 0:02:50]} 13... b6 {[%clk 0:01:44.3]} 14. Bd3
{[%clk 0:02:39.2]} 14... Qe8 {[%clk 0:01:44]} 15. Rh2 {[%clk 0:02:28.7]} 15...
Ba6 {[%clk 0:01:42.1]} 16. cxd5 {[%clk 0:02:24.3]} 16... Bxd3 {[%clk 0:01:41.3]}
17. Qxd3 {[%clk 0:02:25.1]} 17... exd5 {[%clk 0:01:17.7]} 18. Rdh1 {[%clk
0:02:19.5]} 18... Qe6 {[%clk 0:01:14.3]} 19. e4 {[%clk 0:02:05.2]} 19... Rfd8
{[%clk 0:01:06.2]} 20. e5 {[%clk 0:01:59.1]} 20... c5 {[%clk 0:01:03.2]} 21. Ne2
{[%clk 0:01:54]} 21... Rac8 {[%clk 0:00:56.7]} 22. Kb1 {[%clk 0:01:47.6]} 22...
cxd4 {[%clk 0:00:54.3]} 23. Nexd4 {[%clk 0:01:45.3]} 23... Nxe5 {[%clk
0:00:20.1]} 24. Nxe6 {[%clk 0:01:38]} 24... Nxd3 {[%clk 0:00:20.1]} 25. Nxd8
{[%clk 0:01:36.4]} 25... Rxd8 {[%clk 0:00:21]} 26. b3 {[%clk 0:01:26.9]} 26...
Nc5 {[%clk 0:00:09.4]} 27. Nd2 {[%clk 0:01:22.9]} 27... d4 {[%clk 0:00:08.7]}
28. f4 {[%clk 0:01:18.7]} 28... a5 {[%clk 0:00:07.4]} 29. Nc4 {[%clk 0:01:17.6]}
29... a4 {[%clk 0:00:07.1]} 30. Ne5 {[%clk 0:01:14.3]} 30... axb3 {[%clk
0:00:07.3]} 31. axb3 {[%clk 0:01:08.5]} 31... Nxb3 {[%clk 0:00:07.4]} 32. Ng4
{[%clk 0:01:07.3]} 32... d3 {[%clk 0:00:06.6]} 33. Nf6+ {[%clk 0:01:06.2]} 33...
Kf8 {[%clk 0:00:06.8]} 34. Rb2 {[%clk 0:00:55.7]} 34... d2 {[%clk 0:00:06]} 35.
Rd1 {[%clk 0:00:53.9]} 35... Rd3 {[%clk 0:00:05.2]} 36. Kc2 {[%clk 0:00:52.5]}
36... Rf3 {[%clk 0:00:03.6]} 37. Rxb3 {[%clk 0:00:51.2]} 1-0

[Event "Early-Titled-Tuesday-Blitz-January-23-2024"]
[Site "Chess.com"]
[Date "2024.01.23"]
[Round "5"]
[White "campochess"]
[Black "Roedor"]
[Result "1/2-1/2"]
[WhiteElo "2106"]
[BlackElo "2288"]
[TimeControl "180+1"]
[EndTime "8:54:36 PST"]
[Termination "Game drawn by repetition"]

1. e4 {[%clk 0:02:58.1]} 1... e5 {[%clk 0:02:59.5]} 2. d4 {[%clk 0:02:57.1]}
2... exd4 {[%clk 0:02:57.2]} 3. Nf3 {[%clk 0:02:57.2]} 3... Nc6 {[%clk
0:02:56.9]} 4. Bc4 {[%clk 0:02:57.3]} 4... Bc5 {[%clk 0:02:56.5]} 5. c3 {[%clk
0:02:56.9]} 5... Nf6 {[%clk 0:02:54.5]} 6. e5 {[%clk 0:02:56]} 6... d5 {[%clk
0:02:53.6]} 7. Bb5 {[%clk 0:02:54]} 7... Ne4 {[%clk 0:02:52.9]} 8. cxd4 {[%clk
0:02:53.9]} 8... Bb6 {[%clk 0:02:53.4]} 9. O-O {[%clk 0:02:41.4]} 9... Bg4
{[%clk 0:02:52.5]} 10. Be3 {[%clk 0:02:41.3]} 10... O-O {[%clk 0:02:51.7]} 11.
Nbd2 {[%clk 0:02:41.1]} 11... Nxd2 {[%clk 0:02:49.1]} 12. Qxd2 {[%clk
0:02:29.8]} 12... Bxf3 {[%clk 0:02:48.4]} 13. gxf3 {[%clk 0:02:29.8]} 13... Ne7
{[%clk 0:02:42.2]} 14. Kh1 {[%clk 0:02:27.9]} 14... Nf5 {[%clk 0:02:41.6]} 15.
Bd3 {[%clk 0:02:25.7]} 15... Nh4 {[%clk 0:02:41.8]} 16. Qe2 {[%clk 0:02:25]}
16... f5 {[%clk 0:02:40.9]} 17. f4 {[%clk 0:02:24.6]} 17... Rc8 {[%clk
0:02:37.5]} 18. b4 {[%clk 0:02:22.7]} 18... a5 {[%clk 0:02:36.9]} 19. a3 {[%clk
0:02:22.1]} 19... Qe7 {[%clk 0:02:36.8]} 20. Rab1 {[%clk 0:02:20.5]} 20... axb4
{[%clk 0:02:36.2]} 21. axb4 {[%clk 0:02:18.6]} 21... Kh8 {[%clk 0:02:29]} 22.
Rg1 {[%clk 0:02:18.6]} 22... Rg8 {[%clk 0:02:28]} 23. Rg5 {[%clk 0:02:18]} 23...
Ng6 {[%clk 0:02:16.9]} 24. Qh5 {[%clk 0:02:16.7]} 24... Nf8 {[%clk 0:02:14.8]}
25. Rxf5 {[%clk 0:01:49.7]} 25... g6 {[%clk 0:02:13.4]} 26. Qg5 {[%clk
0:01:49.7]} 26... Qxg5 {[%clk 0:02:04.2]} 27. Rxg5 {[%clk 0:01:49.4]} 27... Ne6
{[%clk 0:02:04.5]} 28. Rg4 {[%clk 0:01:43.8]} 28... Nxd4 {[%clk 0:02:03.8]} 29.
Bxd4 {[%clk 0:01:39.9]} 29... Bxd4 {[%clk 0:02:04.7]} 30. f5 {[%clk 0:01:39.8]}
30... Bxe5 {[%clk 0:02:03.5]} 31. fxg6 {[%clk 0:01:39.8]} 31... Rcf8 {[%clk
0:01:59.5]} 32. Rbg1 {[%clk 0:01:35.2]} 32... Rxf2 {[%clk 0:01:57]} 33. Rh4
{[%clk 0:01:21.6]} 33... Rg7 {[%clk 0:01:47.3]} 34. gxh7 {[%clk 0:01:20]} 34...
Rxg1+ {[%clk 0:01:42.6]} 35. Kxg1 {[%clk 0:01:20.1]} 35... Rf4 {[%clk
0:01:38.1]} 36. Rh5 {[%clk 0:01:18.3]} 36... Bd4+ {[%clk 0:01:35.3]} 37. Kg2
{[%clk 0:01:17.5]} 37... c6 {[%clk 0:01:35.6]} 38. Kg3 {[%clk 0:01:16.3]} 38...
Rf7 {[%clk 0:01:28.6]} 39. Kg4 {[%clk 0:01:13.6]} 39... Bc3 {[%clk 0:01:18.8]}
40. b5 {[%clk 0:01:11.8]} 40... Bd4 {[%clk 0:01:10]} 41. bxc6 {[%clk 0:01:08.4]}
41... bxc6 {[%clk 0:01:10.9]} 42. Rh6 {[%clk 0:01:08.3]} 42... Rc7 {[%clk
0:01:09.1]} 43. Re6 {[%clk 0:01:02.4]} 43... Rc8 {[%clk 0:01:01.4]} 44. Kf5
{[%clk 0:01:02.3]} 44... c5 {[%clk 0:01:00.5]} 45. Kg6 {[%clk 0:00:58.4]} 45...
c4 {[%clk 0:00:59.9]} 46. Bf5 {[%clk 0:00:58.5]} 46... Bg7 {[%clk 0:00:50.2]}
47. Rd6 {[%clk 0:00:58]} 47... Rf8 {[%clk 0:00:39.3]} 48. Rxd5 {[%clk
0:00:55.9]} 48... c3 {[%clk 0:00:39.7]} 49. Rc5 {[%clk 0:00:55]} 49... Rf6+
{[%clk 0:00:36.5]} 50. Kg5 {[%clk 0:00:54.5]} 50... Rf8 {[%clk 0:00:34.1]} 51.
Kg6 {[%clk 0:00:53.6]} 51... Rf6+ {[%clk 0:00:33.9]} 52. Kg5 {[%clk 0:00:53.7]}
52... Rf8 {[%clk 0:00:34.6]} 53. Kg6 {[%clk 0:00:53.9]} 1/2-1/2

[Event "Early-Titled-Tuesday-Blitz-January-23-2024"]
[Site "Chess.com"]
[Date "2024.01.23"]
[Round "5"]
[White "kleinebeer98"]
[Black "Andrej2004"]
[Result "1-0"]
[WhiteElo "2854"]
[BlackElo "2630"]
[TimeControl "180+1"]
[EndTime "8:54:39 PST"]
[Termination "kleinebeer98 won by resignation"]

1. e4 {[%clk 0:03:00.9]} 1... e5 {[%clk 0:03:00]} 2. Nc3 {[%clk 0:02:59]} 2...
Nc6 {[%clk 0:03:00.2]} 3. Bc4 {[%clk 0:02:58.4]} 3... Nf6 {[%clk 0:02:59.7]} 4.
d3 {[%clk 0:02:58.8]} 4... Bc5 {[%clk 0:02:59.1]} 5. f4 {[%clk 0:02:57.9]} 5...
d6 {[%clk 0:02:58.9]} 6. Nf3 {[%clk 0:02:57.5]} 6... Bd7 {[%clk 0:02:42.2]} 7.
Na4 {[%clk 0:02:49]} 7... Bb4+ {[%clk 0:02:38.9]} 8. c3 {[%clk 0:02:47.6]} 8...
Ba5 {[%clk 0:02:39.3]} 9. O-O {[%clk 0:02:38.2]} 9... Qe7 {[%clk 0:02:24.8]} 10.
Kh1 {[%clk 0:02:35]} 10... h6 {[%clk 0:02:21.2]} 11. b4 {[%clk 0:02:30.1]} 11...
Bb6 {[%clk 0:02:20.2]} 12. Nxb6 {[%clk 0:02:30.6]} 12... axb6 {[%clk 0:02:19.9]}
13. a4 {[%clk 0:02:31.5]} 13... exf4 {[%clk 0:02:13.5]} 14. Bxf4 {[%clk
0:02:31.1]} 14... Ne5 {[%clk 0:02:06.6]} 15. Nxe5 {[%clk 0:02:22.7]} 15... dxe5
{[%clk 0:02:06.8]} 16. Be3 {[%clk 0:02:21.8]} 16... Be6 {[%clk 0:02:05]} 17.
Bb5+ {[%clk 0:02:08.7]} 17... c6 {[%clk 0:02:02.5]} 18. Bc4 {[%clk 0:02:09.3]}
18... Bxc4 {[%clk 0:01:58.4]} 19. dxc4 {[%clk 0:02:10.2]} 19... Nxe4 {[%clk
0:01:53.6]} 20. Qg4 {[%clk 0:02:10.1]} 20... Nd6 {[%clk 0:01:37.2]} 21. Rad1
{[%clk 0:02:00.3]} 21... O-O {[%clk 0:01:18.1]} 22. Bxh6 {[%clk 0:02:00.2]}
22... f5 {[%clk 0:01:18.2]} 23. Qxg7+ {[%clk 0:01:50.1]} 23... Qxg7 {[%clk
0:01:18.3]} 24. Bxg7 {[%clk 0:01:51]} 24... Kxg7 {[%clk 0:01:18.3]} 25. Rxd6
{[%clk 0:01:51.5]} 25... Rad8 {[%clk 0:01:18.5]} 26. Rxd8 {[%clk 0:01:45.6]}
26... Rxd8 {[%clk 0:01:17.9]} 27. h3 {[%clk 0:01:43.6]} 27... f4 {[%clk
0:01:11.3]} 28. g3 {[%clk 0:01:35.7]} 28... fxg3 {[%clk 0:01:09.9]} 29. Rf3
{[%clk 0:01:35.5]} 29... e4 {[%clk 0:01:06.6]} 30. Rxg3+ {[%clk 0:01:35.6]}
30... Kf6 {[%clk 0:01:07]} 31. Kg2 {[%clk 0:01:31.9]} 31... Rd2+ {[%clk
0:01:06.5]} 32. Kf1 {[%clk 0:01:32.2]} 32... Ke5 {[%clk 0:01:06.7]} 33. Rg7
{[%clk 0:01:11.7]} 33... Kf4 {[%clk 0:01:05]} 34. Rxb7 {[%clk 0:01:11]} 34...
Kf3 {[%clk 0:00:55.8]} 35. Rf7+ {[%clk 0:01:08.7]} 35... Ke3 {[%clk 0:00:55.9]}
36. c5 {[%clk 0:00:58.6]} 36... bxc5 {[%clk 0:00:54.1]} 37. a5 {[%clk
0:00:59.2]} 37... cxb4 {[%clk 0:00:53]} 38. cxb4 {[%clk 0:01:00.1]} 38... Rd1+
{[%clk 0:00:28.2]} 39. Kg2 {[%clk 0:01:00]} 39... Rb1 {[%clk 0:00:19.3]} 40. a6
{[%clk 0:00:54.5]} 40... Rxb4 {[%clk 0:00:19]} 41. a7 {[%clk 0:00:55.1]} 41...
Ra4 {[%clk 0:00:19.7]} 42. h4 {[%clk 0:00:55.7]} 42... c5 {[%clk 0:00:19.9]} 43.
h5 {[%clk 0:00:56.4]} 43... c4 {[%clk 0:00:20.3]} 44. h6 {[%clk 0:00:52.6]}
44... c3 {[%clk 0:00:17.7]} 45. h7 {[%clk 0:00:53.3]} 45... c2 {[%clk 0:00:15]}
46. h8=Q {[%clk 0:00:53.6]} 1-0